bitfinex/quotes_BTCUSD_20240719
["timestamp","ask_amount","ask_price","bid_price","bid_amount"]
[1721401214286,8.98225,65798.0,65797.0,2.98210387]
[1721401215592,8.98225,65798.0,65797.0,2.2669203]
[1721401215830,8.98225,65798.0,65797.0,2.98200049]
[1721401216769,8.98225,65798.0,65797.0,2.2669203]
[1721401218624,7.76225,65798.0,65797.0,2.2669203]
[1721401219145,7.76225,65798.0,65797.0,2.39304134]
[1721401219440,6.91355,65798.0,65797.0,2.39304134]
[1721401219789,6.91355,65798.0,65797.0,2.2669203]
[1721401219995,6.91355,65798.0,65797.0,2.5708853]
[1721401220409,6.91355,65798.0,65797.0,2.32997553]
[1721401220602,6.91355,65798.0,65797.0,2.5708853]
[1721401221172,6.90555,65798.0,65797.0,2.5622853]
[1721401221806,6.90555,65798.0,65797.0,2.5342853]
[1721401222243,6.90555,65798.0,65797.0,2.5202853]
[1721401222645,6.90555,65798.0,65797.0,2.4332853]
[1721401223007,6.90555,65798.0,65797.0,2.5482853]
[1721401223703,5.68555,65798.0,65797.0,2.5482853]
[1721401225125,5.68555,65798.0,65797.0,2.88506186]
[1721401225635,5.68555,65798.0,65797.0,2.94812283]
[1721401226047,5.68555,65798.0,65797.0,2.92012283]
[1721401226406,5.68555,65798.0,65797.0,2.94812283]
[1721401226603,5.68555,65798.0,65797.0,2.93412283]
[1721401228157,5.68555,65798.0,65797.0,2.5342853]
[1721401228386,5.68555,65798.0,65797.0,2.59734633]
[1721401228798,4.46555,65798.0,65797.0,2.59734633]
[1721401229148,4.46555,65798.0,65797.0,2.58334633]
[1721401229573,4.46555,65798.0,65797.0,2.59734633]
[1721401229780,4.46555,65798.0,65797.0,2.61134633]
[1721401229975,4.46555,65798.0,65797.0,3.08391558]
[1721401231739,4.46555,65798.0,65797.0,2.94812103]
[1721401233648,3.24555,65798.0,65797.0,3.08375955]
[1721401233821,3.24555,65798.0,65797.0,3.08375816]
[1721401234233,3.24555,65798.0,65797.0,2.94812103]
[1721401234621,3.24555,65798.0,65797.0,2.97187682]
[1721401234825,3.24555,65798.0,65797.0,2.94812103]
[1721401235060,3.24555,65798.0,65797.0,2.92662145]
[1721401235259,3.24555,65798.0,65797.0,3.26019916]
[1721401236347,3.20905767,65798.0,65797.0,4.37559077]
[1721401236592,3.17866167,65798.0,65797.0,3.28395477]
[1721401236798,3.17866167,65798.0,65797.0,3.48416792]
[1721401237275,3.17866167,65798.0,65797.0,3.28395477]
[1721401238096,3.17866167,65798.0,65797.0,2.9036619]
[1721401238390,3.17866167,65798.0,65797.0,3.28198653]
[1721401238740,3.17866167,65798.0,65797.0,3.26798653]
[1721401238741,1.95866167,65798.0,65797.0,3.26798653]
[1721401238944,1.95866167,65798.0,65797.0,3.16698653]
[1721401239349,1.95866167,65798.0,65797.0,3.26798653]
[1721401239752,1.95588847,65798.0,65797.0,3.26798653]
[1721401239957,1.95588847,65798.0,65797.0,3.24423092]
[1721401240160,2.10148847,65798.0,65797.0,2.23820092]
[1721401240361,2.10148847,65798.0,65797.0,1.95177187]
[1721401240570,2.10148847,65798.0,65797.0,1.92057993]
[1721401241184,2.10148847,65798.0,65797.0,1.90657993]
[1721401241390,2.10148847,65798.0,65797.0,1.39600567]
[1721401241391,2.25587021,65798.0,65797.0,1.39600567]
[1721401241517,0.08,65796.0,65788.0,0.000924]
[1721401241725,0.1373,65791.0,65790.0,0.455995]
[1721401241919,0.29168174,65791.0,65790.0,1.063989]
[1721401242120,0.1373,65791.0,65790.0,1.82968465]
[1721401242327,2.01668847,65798.0,65797.0,1.063877]
[1721401242541,2.01668847,65798.0,65797.0,1.52552601]
[1721401242739,2.01668847,65798.0,65797.0,1.8616156]
[1721401243013,1.95588847,65798.0,65797.0,1.88866484]
[1721401243152,1.95588847,65798.0,65797.0,1.99058884]
[1721401243368,1.95672847,65798.0,65797.0,2.34981653]
[1721401244024,0.73672847,65798.0,65797.0,2.52246648]
[1721401244234,0.73672847,65798.0,65797.0,2.09541501]
[1721401244422,0.73672847,65798.0,65797.0,2.44125735]
[1721401244639,0.73672847,65798.0,65797.0,2.09541501]
[1721401244856,0.73672847,65798.0,65797.0,2.43219579]
[1721401245065,0.73672847,65798.0,65797.0,2.4412513]
[1721401245414,0.73672847,65798.0,65797.0,2.4272513]
[1721401245614,0.73772847,65798.0,65797.0,2.43119579]
[1721401245924,0.73872847,65798.0,65797.0,2.44519579]
[1721401246189,0.73872847,65798.0,65797.0,2.45425103]
[1721401246420,0.73772847,65798.0,65797.0,2.44025103]
[1721401246673,0.73872847,65798.0,65797.0,2.45425103]
[1721401247414,0.73872847,65798.0,65797.0,2.45425152]
[1721401248463,0.73872847,65798.0,65797.0,2.75821652]
[1721401248672,0.73872847,65798.0,65797.0,3.0366681]
[1721401248855,0.0101,65800.0,65799.0,1.417797]
[1721401249061,0.0827,65813.0,65808.0,0.455871]
[1721401249261,0.0827,65813.0,65808.0,2.13081673]
[1721401249463,0.0827,65813.0,65808.0,2.0630789]
[1721401249682,0.0827,65813.0,65808.0,2.0629992]
[1721401249893,0.0827,65813.0,65808.0,2.13081565]
[1721401250308,0.0827,65813.0,65808.0,1.72622424]
[1721401250520,0.0827,65813.0,65808.0,2.06300285]
[1721401250922,0.003,65809.0,65808.0,1.97600285]
[1721401251130,0.003,65809.0,65808.0,1.97596969]
[1721401251565,0.003,65809.0,65808.0,2.16515072]
[1721401253439,0.003,65809.0,65808.0,1.89618947]
[1721401255002,0.004,65809.0,65808.0,1.91018947]
[1721401255304,0.004,65809.0,65808.0,2.24697028]
[1721401255638,0.1442,65809.0,65808.0,2.24697906]
[1721401255840,0.1442,65809.0,65808.0,1.91019825]
[1721401256586,0.1442,65809.0,65808.0,2.01119946]
[1721401257321,0.1442,65809.0,65808.0,1.85355018]
[1721401257526,0.1442,65809.0,65808.0,2.01120302]
[1721401257886,0.1442,65809.0,65808.0,2.34798581]
[1721401258273,0.05,65828.0,65824.0,0.15192]
[1721401258488,0.15438174,65825.0,65824.0,0.27804226]
[1721401259653,0.15438174,65825.0,65824.0,0.2780415]
[1721401259867,0.15738174,65825.0,65824.0,0.2780415]
[1721401261144,0.29908174,65825.0,65824.0,0.2780415]
[1721401261970,0.607581,65835.0,65824.0,0.2780415]
[1721401261971,0.0007178,65838.0,65828.0,0.455733]
[1721401262170,0.0007178,65838.0,65828.0,1.5007599]
[1721401262389,0.0007178,65838.0,65828.0,3.16168521]
[1721401262607,0.0007178,65838.0,65828.0,3.47623427]
[1721401262795,0.0007178,65838.0,65828.0,3.29089833]
[1721401263003,0.0007178,65838.0,65828.0,3.3408607]
[1721401263616,0.0007178,65838.0,65828.0,3.47610776]
[1721401263820,0.003,65829.0,65828.0,3.49010776]
[1721401264028,0.0007178,65838.0,65837.0,1.36701]
[1721401264232,0.0007178,65838.0,65837.0,2.25136371]
[1721401264437,0.0007178,65838.0,65837.0,1.81373912]
[1721401265065,0.0007178,65838.0,65837.0,1.88134074]
[1721401265274,0.0007178,65838.0,65837.0,1.85876281]
[1721401266306,0.0007178,65838.0,65837.0,1.85875064]
[1721401266721,0.0007178,65838.0,65837.0,1.81366388]
[1721401266931,0.0007178,65838.0,65837.0,2.50991238]
[1721401267131,0.0007178,65838.0,65837.0,3.39524378]
[1721401267132,0.0010008,65838.0,65837.0,3.39524378]
[1721401267429,0.00018336,65842.0,65841.0,1.482029]
[1721401267685,0.00018336,65842.0,65841.0,3.14027403]
[1721401267854,0.00018336,65842.0,65841.0,3.19027523]
[1721401268073,0.00018336,65842.0,65841.0,3.19023486]
[1721401268291,0.00018336,65842.0,65841.0,3.1613248]
[1721401268496,0.00018336,65842.0,65841.0,3.61933696]
[1721401268912,0.00018336,65842.0,65841.0,3.66392829]
[1721401269123,0.00018336,65842.0,65841.0,3.71338148]
[1721401269553,0.00218336,65842.0,65841.0,3.71438148]
[1721401269752,0.00218336,65842.0,65841.0,3.71338148]
[1721401270156,0.00418336,65842.0,65841.0,3.62033696]
[1721401270360,0.00418336,65842.0,65841.0,3.80427662]
[1721401270536,0.00418336,65842.0,65841.0,3.75582343]
[1721401270741,3.6e-07,65842.0,65841.0,3.80527312]
[1721401270939,0.00836,65847.0,65846.0,2.024303]
[1721401271143,0.00836,65847.0,65846.0,2.74233129]
[1721401271502,0.00836,65847.0,65846.0,2.93136578]
[1721401272018,0.00836,65847.0,65846.0,2.74233129]
[1721401272260,0.00836,65847.0,65846.0,2.93136578]
[1721401272462,0.00836,65847.0,65846.0,2.99136578]
[1721401273040,0.00836,65847.0,65846.0,1.18910899]
[1721401273221,0.00836,65847.0,65846.0,0.88636999]
[1721401273662,0.00836,65847.0,65846.0,1.19010899]
[1721401273874,0.00836,65847.0,65846.0,1.19110899]
[1721401274092,0.00836,65847.0,65846.0,1.064086]
[1721401274294,0.00836,65847.0,65846.0,1.49388989]
[1721401274681,0.00836,65847.0,65846.0,1.49988989]
[1721401275026,0.00836,65847.0,65846.0,1.80362889]
[1721401275407,0.00836,65847.0,65846.0,1.95201063]
[1721401275613,0.00836,65847.0,65846.0,1.95101063]
[1721401275950,0.00836,65847.0,65846.0,2.40474963]
[1721401276085,0.00936,65847.0,65846.0,2.42974963]
[1721401276502,0.00836,65847.0,65846.0,2.37774963]
[1721401276731,0.00936,65847.0,65846.0,2.42974963]
[1721401277244,0.00836,65847.0,65846.0,2.47774963]
[1721401277433,0.00936,65847.0,65846.0,2.67084697]
[1721401277637,0.00936,65847.0,65846.0,2.5300308]
[1721401277854,0.00936,65847.0,65846.0,2.66912814]
[1721401278065,0.00936,65847.0,65846.0,2.43725613]
[1721401278195,0.00936,65847.0,65846.0,2.57084697]
[1721401278684,0.00936,65847.0,65846.0,2.58484697]
[1721401278842,0.00836,65847.0,65846.0,2.58084697]
[1721401279056,1e-08,65849.0,65848.0,1.670509]
[1721401279380,1e-08,65849.0,65848.0,2.07395563]
[1721401279580,1e-08,65849.0,65848.0,2.26305297]
[1721401279787,1e-08,65849.0,65848.0,2.07395563]
[1721401280109,1e-08,65849.0,65848.0,2.26305297]
[1721401280314,1e-08,65849.0,65848.0,2.07395563]
[1721401280515,1e-08,65849.0,65848.0,2.26305297]
[1721401280720,1e-08,65849.0,65848.0,2.07372331]
[1721401281045,0.00100001,65849.0,65848.0,2.26277216]
[1721401281596,0.00100001,65849.0,65848.0,2.27677216]
[1721401281768,0.00100001,65849.0,65848.0,2.26277216]
[1721401282154,0.00100001,65849.0,65848.0,2.27677216]
[1721401282537,1e-08,65849.0,65848.0,2.27677216]
[1721401282736,0.00100001,65849.0,65848.0,2.27877216]
[1721401283203,0.00100001,65849.0,65848.0,2.27878402]
[1721401283462,0.00100001,65849.0,65848.0,1.96369074]
[1721401283669,0.00100001,65849.0,65848.0,1.952055]
[1721401286204,0.00100001,65849.0,65848.0,2.278784]
[1721401286380,0.00100001,65849.0,65848.0,2.43632815]
[1721401286677,0.00100001,65849.0,65848.0,2.43632316]
[1721401287936,0.00100001,65849.0,65848.0,2.13259416]
[1721401288970,0.00100001,65849.0,65848.0,1.65148342]
[1721401289169,0.00100001,65849.0,65848.0,1.49293927]
[1721401289384,0.00100001,65849.0,65848.0,1.65050313]
[1721401289588,0.00100001,65849.0,65848.0,1.65050353]
[1721401289758,0.00100001,65849.0,65848.0,1.95427411]
[1721401290181,1e-08,65849.0,65848.0,1.95227411]
[1721401290445,1e-08,65849.0,65848.0,1.95427411]
[1721401290571,0.00100001,65849.0,65848.0,1.95427411]
[1721401290978,0.00100001,65849.0,65848.0,1.94027411]
[1721401291399,0.00100001,65849.0,65848.0,1.95427411]
[1721401292710,0.00100001,65849.0,65848.0,1.63914426]
[1721401293000,0.00100001,65849.0,65848.0,2.1086401]
[1721401293171,0.00100001,65849.0,65848.0,2.1867401]
[1721401293699,0.00100001,65849.0,65848.0,2.2097401]
[1721401294548,0.00100001,65849.0,65848.0,2.1867401]
[1721401295900,0.00100001,65849.0,65848.0,1.871626]
[1721401296094,0.00100001,65849.0,65848.0,2.18672606]
[1721401296321,0.00100001,65849.0,65848.0,2.02916207]
[1721401296552,0.00100001,65849.0,65848.0,2.18671225]
[1721401297712,0.00100001,65849.0,65848.0,1.65050151]
[1721401298592,0.0148752,65853.0,65848.0,1.65050151]
[1721401298593,0.0148752,65853.0,65852.0,1.062988]
[1721401298765,0.0148752,65853.0,65852.0,1.93222025]
[1721401299004,0.0148752,65853.0,65852.0,2.23590584]
[1721401300035,0.0148752,65853.0,65852.0,2.58961684]
[1721401300239,0.0148752,65853.0,65852.0,2.60361684]
[1721401300444,0.0158752,65853.0,65852.0,2.55561684]
[1721401301486,0.0158752,65853.0,65852.0,2.98232784]
[1721401301692,0.0158752,65853.0,65852.0,3.0197914]
[1721401302025,0.0158752,65853.0,65852.0,3.06977554]
[1721401302231,0.0158752,65853.0,65852.0,3.0703286]
[1721401302409,0.0158752,65853.0,65852.0,3.45183768]
[1721401302611,0.0158752,65853.0,65852.0,3.39482228]
[1721401302818,0.00836,65855.0,65852.0,3.39482228]
[1721401302819,0.00836,65855.0,65854.0,2.139363]
[1721401303020,0.00836,65855.0,65854.0,3.64703914]
[1721401303227,0.00836,65855.0,65854.0,3.66956489]
[1721401303689,0.00836,65855.0,65854.0,3.71401305]
[1721401303846,0.00836,65855.0,65854.0,3.64452539]
[1721401304053,9e-07,65858.0,65857.0,2.073972]
[1721401304360,9e-07,65858.0,65857.0,3.34778623]
[1721401304535,9e-07,65858.0,65857.0,3.42593087]
[1721401304952,9e-07,65858.0,65857.0,3.56093454]
[1721401305116,9e-07,65858.0,65857.0,3.24583237]
[1721401305323,2e-07,65861.0,65860.0,2.073881]
[1721401305480,2e-07,65861.0,65860.0,3.38761325]
[1721401305691,2e-07,65861.0,65860.0,3.43833101]
[1721401306151,2e-07,65861.0,65860.0,3.40109008]
[1721401306555,2e-07,65861.0,65860.0,3.65329008]
[1721401306761,2e-07,65861.0,65860.0,3.60329008]
[1721401306964,2e-07,65861.0,65860.0,3.04741608]
[1721401307372,2e-07,65861.0,65860.0,3.04669832]
[1721401307585,2e-07,65861.0,65860.0,3.04741608]
[1721401308042,0.1462002,65861.0,65860.0,0.91082734]
[1721401308314,0.1462002,65861.0,65860.0,0.58153666]
[1721401308531,0.1462002,65861.0,65860.0,1.39192315]
[1721401308731,0.1462002,65861.0,65860.0,1.40592315]
[1721401309176,2e-07,65861.0,65860.0,1.41992315]
[1721401309427,2e-07,65861.0,65860.0,1.56030489]
[1721401309669,2e-07,65861.0,65860.0,1.789837]
[1721401309934,2e-07,65861.0,65860.0,2.099511]
[1721401310171,2e-07,65861.0,65860.0,2.14462253]
[1721401310413,2e-07,65861.0,65860.0,2.14462163]
[1721401310650,2e-07,65861.0,65860.0,1.94197889]
[1721401310850,2e-07,65861.0,65860.0,1.95097889]
[1721401311267,2e-07,65861.0,65860.0,1.9359822]
[1721401311599,2e-07,65861.0,65860.0,1.96298119]
[1721401311802,2e-07,65861.0,65860.0,1.94998119]
[1721401312042,0.0797,65869.0,65863.0,0.05]
[1721401312043,2e-07,65864.0,65863.0,0.05]
[1721401312244,2e-07,65864.0,65863.0,2.71434655]
[1721401312456,2e-07,65864.0,65863.0,3.20085217]
[1721401313182,2e-07,65864.0,65863.0,3.33617066]
[1721401313402,2e-07,65864.0,65863.0,3.20085217]
[1721401313617,0.07717479,65885.0,65874.0,1.36624]
[1721401313833,0.07717479,65885.0,65874.0,2.18952978]
[1721401314037,0.07717479,65885.0,65874.0,2.0382756]
[1721401314235,0.07717479,65885.0,65874.0,1.84920685]
[1721401314439,0.07336,65875.0,65874.0,1.58021267]
[1721401314644,0.07336,65875.0,65874.0,1.39121611]
[1721401314840,0.07336,65875.0,65874.0,1.40521611]
[1721401314997,0.07336,65875.0,65874.0,1.36789427]
[1721401315198,0.07336,65875.0,65874.0,1.3207218]
[1721401315403,0.07336,65875.0,65874.0,1.3067218]
[1721401315601,0.07336,65875.0,65874.0,1.3207218]
[1721401315818,0.07336,65875.0,65874.0,1.3347218]
[1721401316228,0.07336,65875.0,65874.0,1.3166287]
[1721401316653,0.07336,65875.0,65874.0,1.31637052]
[1721401317068,0.07336,65875.0,65874.0,1.33037052]
[1721401317449,0.307462,65875.0,65874.0,0.1679977]
[1721401317650,0.307462,65875.0,65874.0,0.3198017]
[1721401317651,0.15566,65875.0,65874.0,0.3198017]
[1721401317857,0.15566,65875.0,65874.0,0.9270197]
[1721401317858,0.00836,65875.0,65874.0,0.9270197]
[1721401318269,0.00836,65875.0,65874.0,1.38501044]
[1721401318849,0.00836,65875.0,65874.0,1.34301044]
[1721401319232,0.00836,65875.0,65874.0,1.46553417]
[1721401320041,0.00836,65875.0,65874.0,1.2086287]
[1721401320243,0.00836,65875.0,65874.0,1.096631]
[1721401320467,0.00836,65875.0,65874.0,1.22263933]
[1721401320666,0.00836,65875.0,65874.0,1.20863933]
[1721401321122,0.00836,65875.0,65874.0,1.31116306]
[1721401321413,0.00836,65875.0,65874.0,1.41116306]
[1721401321576,0.00836,65875.0,65874.0,1.39116306]
[1721401321791,0.00836,65875.0,65874.0,0.27781233]
[1721401321986,0.14796,65875.0,65874.0,0.27781233]
[1721401322196,0.14796,65875.0,65874.0,0.29181233]
[1721401322559,0.14796,65875.0,65874.0,0.179804]
[1721401322767,0.14796,65875.0,65874.0,0.27782756]
[1721401323187,0.14796,65875.0,65874.0,0.30582756]
[1721401323419,0.14796,65875.0,65874.0,0.91304556]
[1721401323627,0.00836,65875.0,65874.0,1.21665456]
[1721401324631,0.00836,65875.0,65874.0,1.20265456]
[1721401324840,0.00836,65875.0,65874.0,0.89904556]
[1721401325037,0.00836,65875.0,65874.0,0.91304556]
[1721401325264,0.00836,65875.0,65874.0,0.89904556]
[1721401325466,0.00836,65875.0,65874.0,0.88504556]
[1721401325670,0.00836,65875.0,65874.0,0.91304235]
[1721401326080,0.00836,65875.0,65874.0,0.89903723]
[1721401326425,0.00836,65875.0,65874.0,1.20264623]
[1721401327151,0.00836,65875.0,65874.0,1.21664623]
[1721401327812,0.00836,65875.0,65874.0,1.52025523]
[1721401328682,0.00836,65875.0,65874.0,1.53836436]
[1721401328899,0.00836,65875.0,65874.0,1.53836592]
[1721401329069,0.15516,65875.0,65874.0,0.93114823]
[1721401329271,0.15516,65875.0,65874.0,0.91302411]
[1721401329474,0.15516,65875.0,65874.0,0.60941511]
[1721401329695,0.15516,65875.0,65874.0,0.59541511]
[1721401329904,0.15516,65875.0,65874.0,0.60541511]
[1721401330104,0.15516,65875.0,65874.0,0.89502411]
[1721401331215,0.08906,65875.0,65874.0,1.21963311]
[1721401331438,0.00836,65875.0,65874.0,1.52324211]
[1721401331653,0.00836,65875.0,65874.0,1.62324606]
[1721401331857,0.00836,65875.0,65874.0,1.64135744]
[1721401332005,0.00836,65875.0,65874.0,1.31963706]
[1721401332418,0.00836,65875.0,65874.0,1.30863706]
[1721401332596,0.00836,65875.0,65874.0,1.28863706]
[1721401333010,0.00836,65875.0,65874.0,0.99602806]
[1721401333202,0.14846,65875.0,65874.0,0.89602806]
[1721401333768,0.14846,65875.0,65874.0,0.90602806]
[1721401333969,0.14846,65875.0,65874.0,1.20963706]
[1721401334583,0.14846,65875.0,65874.0,1.083631]
[1721401334796,0.14846,65875.0,65874.0,0.91704246]
[1721401335294,0.14846,65875.0,65874.0,1.22065146]
[1721401335730,0.14846,65875.0,65874.0,0.91704246]
[1721401335908,0.14846,65875.0,65874.0,0.15802046]
[1721401336156,1.12669974,65875.0,65874.0,0.032]
[1721401336359,0.0777,65869.0,65862.0,0.151832]
[1721401336603,0.21727479,65863.0,65862.0,0.151832]
[1721401336807,0.21727479,65863.0,65862.0,0.58154851]
[1721401337010,0.1401,65863.0,65862.0,0.58154851]
[1721401337134,0.1401,65863.0,65862.0,0.27788351]
[1721401337340,0.296836,65861.0,65854.0,0.15185]
[1721401337520,0.2522,65859.0,65855.0,0.151846]
[1721401337720,0.15438174,65858.0,65855.0,0.12605964]
[1721401337921,0.15438174,65858.0,65856.0,0.12605964]
[1721401337922,0.492388,65857.0,65856.0,0.12605964]
[1721401338129,0.303706,65854.0,65848.0,0.000924]
[1721401338336,0.21587479,65849.0,65848.0,0.000924]
[1721401338565,0.52211853,65849.0,65848.0,0.000924]
[1721401338988,0.29308174,65849.0,65848.0,0.000924]
[1721401339425,0.1387,65849.0,65848.0,0.000924]
[1721401339627,0.1387,65849.0,65848.0,0.152788]
[1721401339823,0.30695174,65849.0,65848.0,0.000924]
[1721401340021,0.30695174,65849.0,65848.0,0.013924]
[1721401340242,1.06626374,65849.0,65848.0,0.013924]
[1721401340428,1.31946374,65849.0,65848.0,0.020924]
[1721401340984,1.01573874,65849.0,65848.0,0.020924]
[1721401341628,1.11473874,65849.0,65848.0,0.013924]
[1721401341835,0.1394,65837.0,65813.0,0.01816098]
[1721401342039,0.1394,65837.0,65829.0,0.151908]
[1721401342040,0.30627474,65836.0,65829.0,0.151908]
[1721401342313,0.2522,65833.0,65830.0,0.151906]
[1721401342487,0.15438174,65832.0,65827.0,0.303824]
[1721401342929,0.15438174,65832.0,65829.0,0.151907]
[1721401343337,0.15438174,65832.0,65826.0,0.151913]
[1721401343338,0.43107121,65832.0,65826.0,0.151913]
[1721401343511,0.21313274,65831.0,65825.0,0.15284]
[1721401343749,0.2522,65827.0,65825.0,0.000924]
[1721401343962,0.15438174,65826.0,65825.0,0.000924]
[1721401344173,0.15438174,65826.0,65814.0,0.303882]
[1721401344174,0.69513045,65826.0,65814.0,0.303882]
[1721401344382,0.69513045,65826.0,65799.0,0.46304871]
[1721401344383,0.07717479,65817.0,65799.0,0.46304871]
[1721401344594,0.07717479,65817.0,65809.0,0.151953]
[1721401344595,0.38402174,65816.0,65809.0,0.151953]
[1721401344799,0.38402174,65816.0,65805.0,0.303926]
[1721401344800,0.38402174,65816.0,65810.0,0.151951]
[1721401345004,0.38402174,65816.0,65808.0,0.313098]
[1721401345005,0.151942,65815.0,65808.0,0.161141]
[1721401345212,0.15438174,65814.0,65809.0,0.151954]
[1721401345422,0.15438174,65814.0,65808.0,0.313097]
[1721401345633,0.15438174,65814.0,65811.0,0.151948]
[1721401346051,0.15438174,65814.0,65808.0,0.313097]
[1721401346052,0.20280991,65814.0,65808.0,0.009185]
[1721401346258,0.151954,65809.0,65808.0,0.009185]
[1721401346461,0.30633574,65809.0,65808.0,0.009185]
[1721401346573,0.67614474,65809.0,65808.0,0.009185]
[1721401346778,0.57662527,65809.0,65808.0,0.009185]
[1721401347441,0.57662527,65809.0,65808.0,0.010185]
[1721401347689,0.30228174,65809.0,65808.0,0.010185]
[1721401348068,0.30728174,65809.0,65808.0,0.011185]
[1721401348284,0.45923574,65809.0,65808.0,0.011185]
[1721401348907,0.75814474,65809.0,65808.0,0.009185]
[1721401349231,1.06205374,65809.0,65808.0,0.009185]
[1721401349430,1.20932193,65809.0,65808.0,0.009185]
[1721401349610,1.79623093,65809.0,65808.0,0.009185]
[1721401351053,0.898487,65799.0,65788.0,0.000924]
[1721401351262,1.30506874,65799.0,65788.0,0.000924]
[1721401351461,1.30506874,65799.0,65788.0,0.152927]
[1721401351866,0.69715874,65799.0,65788.0,0.000924]
[1721401352076,0.29298174,65799.0,65788.0,0.30493]
[1721401352283,0.29298174,65799.0,65797.0,0.152905]
[1721401352500,0.29298174,65799.0,65797.0,0.000924]
[1721401352703,0.15438174,65798.0,65797.0,0.000924]
[1721401352918,0.30636174,65798.0,65797.0,0.000924]
[1721401353123,0.55856174,65798.0,65797.0,0.000924]
[1721401353329,1.64105653,65798.0,65797.0,0.000924]
[1721401353534,2.04501653,65798.0,65797.0,0.000924]
[1721401353749,2.06801653,65798.0,65797.0,0.000924]
[1721401353955,2.06801653,65798.0,65780.0,0.000913]
[1721401353956,0.152014,65783.0,65780.0,0.000913]
[1721401354366,0.152014,65783.0,65769.0,0.002794]
[1721401354367,0.0672,65773.0,65761.0,0.009185]
[1721401354571,0.304087,65771.0,65761.0,0.009185]
[1721401354770,0.15438174,65770.0,65761.0,0.009185]
[1721401354922,0.053,65772.0,65764.0,0.304116]
[1721401355102,0.053,65772.0,65761.0,0.009185]
[1721401355103,0.2522,65771.0,65766.0,0.304106]
[1721401355321,0.2522,65771.0,65762.0,0.304122]
[1721401355516,0.152048,65769.0,65761.0,0.009185]
[1721401355717,0.2522,65764.0,65762.0,0.001]
[1721401355945,0.15438174,65763.0,65762.0,0.001]
[1721401356536,0.30644274,65763.0,65762.0,0.001]
[1721401356734,0.15438174,65763.0,65761.0,0.009185]
[1721401357138,0.60129,65762.0,65761.0,0.009185]
[1721401357395,0.75567174,65762.0,65761.0,0.009185]
[1721401357614,1.24740681,65762.0,65761.0,0.009185]
[1721401357921,0.89327981,65762.0,65761.0,0.009185]
[1721401358093,0.58915281,65762.0,65761.0,0.009185]
[1721401358846,0.29948174,65762.0,65761.0,0.010185]
[1721401359032,0.45154474,65762.0,65761.0,0.010185]
[1721401359231,0.45154474,65762.0,65761.0,0.009185]
[1721401359383,0.45654474,65762.0,65761.0,0.010185]
[1721401359586,0.76067174,65762.0,65761.0,0.010185]
[1721401359787,0.42989639,65762.0,65761.0,0.010185]
[1721401359989,0.45654474,65762.0,65761.0,0.010185]
[1721401360510,0.76067174,65762.0,65761.0,0.010185]
[1721401360917,0.30448174,65762.0,65761.0,0.010185]
[1721401361118,0.45654474,65762.0,65761.0,0.010185]
[1721401361374,1.06479874,65762.0,65761.0,0.010185]
[1721401361509,1.21914831,65762.0,65761.0,0.011185]
[1721401361715,0.91502131,65762.0,65761.0,0.011185]
[1721401362120,1.21914831,65762.0,65761.0,0.011185]
[1721401362338,0.91502131,65762.0,65761.0,0.010185]
[1721401362982,0.76067174,65762.0,65761.0,0.010185]
[1721401363385,1.11479874,65762.0,65761.0,0.010185]
[1721401363587,1.06479874,65762.0,65761.0,0.010185]
[1721401363994,0.005,65762.0,65761.0,0.16225]
[1721401364200,0.005,65762.0,65761.0,0.770512]
[1721401364402,0.005,65762.0,65761.0,1.074643]
[1721401364625,0.005,65762.0,65761.0,0.770512]
[1721401364847,0.15938174,65762.0,65761.0,0.009185]
[1721401365050,0.15438174,65762.0,65761.0,0.16125]
[1721401365250,0.16981991,65762.0,65761.0,0.009185]
[1721401365502,0.16738174,65762.0,65761.0,0.009185]
[1721401365763,0.17038174,65762.0,65761.0,0.009185]
[1721401366195,0.017,65762.0,65761.0,0.617447]
[1721401366410,0.017,65762.0,65761.0,0.769512]
[1721401366635,0.017,65762.0,65761.0,1.136943]
[1721401366810,0.51304871,65790.0,65779.0,0.152023]
[1721401366811,0.15201,65785.0,65779.0,0.152023]
[1721401367007,0.15438174,65784.0,65761.0,0.476616]
[1721401367205,0.15438174,65784.0,65774.0,0.304071]
[1721401367358,0.15438174,65784.0,65783.0,0.152014]
[1721401367565,0.46304871,65793.0,65777.0,0.0625]
[1721401367778,0.15438174,65792.0,65777.0,0.0625]
[1721401367982,0.07717479,65789.0,65777.0,0.0625]
[1721401368181,0.15438174,65788.0,65779.0,0.152023]
[1721401368385,0.07717479,65782.0,65777.0,0.152026]
[1721401368583,0.07717479,65782.0,65765.0,0.1438]
[1721401368584,0.152022,65780.0,65774.0,0.152034]
[1721401368827,0.15438174,65779.0,65773.0,0.304076]
[1721401369028,0.15438174,65779.0,65774.0,0.152034]
[1721401369202,0.15438174,65779.0,65769.0,0.304093]
[1721401369404,0.15438174,65779.0,65778.0,0.152026]
[1721401369603,0.1448,65784.0,65773.0,0.304074]
[1721401369807,0.15438174,65783.0,65782.0,0.152015]
[1721401370234,0.013,65788.0,65787.0,0.152005]
[1721401370406,0.16138174,65788.0,65787.0,0.152005]
[1721401370633,0.16138174,65788.0,65781.0,0.304039]
[1721401370799,0.15438174,65787.0,65782.0,0.152015]
[1721401371009,0.15438174,65787.0,65781.0,0.304039]
[1721401371206,0.15438174,65787.0,65777.0,0.152027]
[1721401371207,0.22919179,65782.0,65777.0,0.152027]
[1721401371412,0.15438174,65781.0,65765.0,0.1438]
[1721401371611,0.15438174,65781.0,65772.0,0.304077]
[1721401371806,0.15438174,65781.0,65773.0,0.12621995]
[1721401372174,0.07717479,65780.0,65778.0,0.002]
[1721401372473,0.152026,65778.0,65772.0,0.152039]
[1721401372674,0.152026,65778.0,65768.0,0.608194]
[1721401372675,0.15438174,65777.0,65773.0,0.27825699]
[1721401372810,0.15438174,65777.0,65774.0,0.12622099]
[1721401373014,0.15438174,65777.0,65775.0,0.12622099]
[1721401373214,0.1438,65776.0,65765.0,0.01918217]
[1721401373413,0.152041,65772.0,65766.0,0.12622395]
[1721401373660,0.152041,65772.0,65762.0,0.304122]
[1721401373661,0.15438174,65771.0,65767.0,0.12622395]
[1721401373916,0.15438174,65771.0,65768.0,0.12623123]
[1721401374121,0.15438174,65771.0,65770.0,0.152045]
[1721401374279,0.15438174,65771.0,65770.0,0.12623123]
[1721401374745,0.61050874,65771.0,65770.0,0.12623123]
[1721401374946,0.70114131,65771.0,65770.0,0.12623123]